bitfinex/quotes_BTCUSD_20251205
["timestamp","ask_amount","ask_price","bid_price","bid_amount"]
[1764939807136,0.02255,91236.0,91235.0,0.02154041]
[1764939807525,0.03769,91236.0,91235.0,0.02154041]
[1764939807928,0.03769,91236.0,91235.0,0.24075452]
[1764939808130,0.03769,91236.0,91235.0,0.02154041]
[1764939808672,0.03769,91236.0,91235.0,0.24075452]
[1764939809815,0.03869,91236.0,91235.0,0.24075452]
[1764939810019,0.03769,91236.0,91235.0,0.24075452]
[1764939810343,0.03969,91236.0,91235.0,0.24075452]
[1764939811217,0.03969,91236.0,91235.0,0.02154041]
[1764939811449,0.25890171,91236.0,91235.0,0.02154041]
[1764939812205,0.21921673,91234.0,91232.0,0.23018238]
[1764939812410,0.01514,91233.0,91232.0,0.02154041]
[1764939812637,0.25690892,91233.0,91232.0,0.02154041]
[1764939812839,0.03769,91233.0,91232.0,0.02154041]
[1764939813449,0.03769,91233.0,91232.0,0.24076173]
[1764939816265,0.03869,91233.0,91232.0,0.24076173]
[1764939819597,0.03869,91233.0,91232.0,0.2411607]
[1764939820507,0.25790892,91233.0,91232.0,0.00039897]
[1764939821866,0.25290892,91233.0,91232.0,0.00039897]
[1764939822633,0.28115082,91233.0,91232.0,0.00039897]
[1764939827377,0.30467781,91233.0,91232.0,0.00039897]
[1764939827747,0.0619319,91233.0,91232.0,0.21962029]
[1764939828249,0.0619319,91233.0,91232.0,0.2411607]
[1764939828448,0.08545921,91233.0,91232.0,0.2411607]
[1764939828653,0.08545921,91233.0,91232.0,0.02193938]
[1764939828860,0.08545921,91233.0,91232.0,0.2411607]
[1764939833318,0.30467813,91233.0,91232.0,0.00039897]
[1764939842527,0.48971426,91233.0,91232.0,0.00039897]
[1764939842728,0.49994612,91233.0,91232.0,0.00039897]
[1764939842925,0.50294612,91233.0,91232.0,0.00039897]
[1764939843444,0.21926458,91214.0,91213.0,0.00184023]
[1764939843644,0.24251458,91214.0,91213.0,0.00184023]
[1764939843846,0.31677073,91214.0,91213.0,0.00184023]
[1764939844048,0.34968912,91214.0,91213.0,0.00184023]
[1764939845853,0.35368912,91214.0,91213.0,0.00184023]
[1764939861656,0.24070934,91214.0,91176.0,0.323]
[1764939861828,0.24260356,91177.0,91171.0,0.464494]
[1764939862037,0.24260356,91177.0,91170.0,0.0004]
[1764939862038,0.23534559,91172.0,91170.0,0.0004]
[1764939862239,0.03928,91171.0,91170.0,0.0004]
[1764939863137,0.05024996,91171.0,91170.0,0.0004]
[1764939863278,0.07764287,91171.0,91170.0,0.0004]
[1764939863655,0.07764287,91171.0,91170.0,0.00051972]
[1764939864468,0.07864287,91171.0,91170.0,0.00051972]
[1764939865081,0.08064287,91171.0,91170.0,0.00051972]
[1764939865898,0.07964287,91171.0,91170.0,0.00051972]
[1764939870852,0.07964287,91171.0,91160.0,0.0004]
[1764939870853,0.21939206,91161.0,91160.0,0.0004]
[1764939871052,0.24598206,91161.0,91160.0,0.00050068]
[1764939871182,0.26871206,91161.0,91160.0,0.00050068]
[1764939871380,0.33562735,91161.0,91160.0,0.00050068]
[1764939871582,0.35906614,91161.0,91160.0,0.00050068]
[1764939872247,0.36006614,91161.0,91160.0,0.00050068]
[1764939872439,0.35906614,91161.0,91160.0,0.00050068]
[1764939872972,0.36006614,91161.0,91160.0,0.00050068]
[1764939874119,0.36506614,91161.0,91160.0,0.00150068]
[1764939875130,0.38238614,91161.0,91160.0,0.00150068]
[1764939876802,0.46964193,91161.0,91160.0,0.00150068]
[1764939877811,0.46964193,91161.0,91160.0,0.00305784]
[1764939878917,0.38238614,91161.0,91160.0,0.00305784]
[1764939880707,0.31986315,91161.0,91160.0,0.00305784]
[1764939881063,0.30254315,91161.0,91160.0,0.00305784]
[1764939881384,0.29642436,91161.0,91160.0,0.00305784]
[1764939881584,0.31986315,91161.0,91160.0,0.00305784]
[1764939884121,0.30254315,91161.0,91160.0,0.00305784]
[1764939884264,0.29642436,91161.0,91160.0,0.00305784]
[1764939884479,0.31986315,91161.0,91160.0,0.00305784]
[1764939886225,0.44007887,91161.0,91160.0,0.00305784]
[1764939886428,0.41062157,91161.0,91160.0,0.00305784]
[1764939886809,0.31986315,91161.0,91160.0,0.00305784]
[1764939887036,0.31986315,91161.0,91135.0,0.01097273]
[1764939887037,0.01097176,91143.0,91120.0,0.0004]
[1764939887252,0.21946428,91131.0,91120.0,0.0004]
[1764939887445,0.26096428,91131.0,91130.0,0.00079961]
[1764939887649,0.2887966,91131.0,91130.0,0.00079961]
[1764939887873,0.3115266,91131.0,91130.0,0.00079961]
[1764939888085,0.37404959,91131.0,91130.0,0.00079961]
[1764939889759,0.2942066,91131.0,91130.0,0.00079961]
[1764939889962,0.07474232,91131.0,91130.0,0.00079961]
[1764939890386,0.07574232,91131.0,91130.0,0.00279961]
[1764939890611,0.07474232,91131.0,91130.0,0.00079961]
[1764939890810,0.03685232,91131.0,91130.0,0.00079961]
[1764939891011,0.03685232,91131.0,91130.0,0.00179961]
[1764939891012,0.05879353,91131.0,91130.0,0.00179961]
[1764939891215,0.08223232,91131.0,91130.0,0.2212663]
[1764939891428,0.04085232,91131.0,91130.0,0.24280671]
[1764939891638,0.03985232,91131.0,91130.0,0.24280671]
[1764939891846,0.05331232,91131.0,91130.0,0.2202663]
[1764939892056,0.07823232,91131.0,91130.0,0.00079961]
[1764939892696,0.07823232,91131.0,91130.0,0.00168157]
[1764939893331,0.07923232,91131.0,91130.0,0.00468157]
[1764939894875,0.21948837,91121.0,91103.0,0.21952944]
[1764939895080,0.28430716,91121.0,91120.0,0.00051979]
[1764939896412,0.28430716,91121.0,91120.0,0.00651979]
[1764939896413,0.28530716,91121.0,91120.0,0.00651979]
[1764939896836,0.28530716,91121.0,91120.0,0.00551979]
[1764939897152,0.21951246,91111.0,91103.0,0.01097658]
[1764939897359,0.21951246,91111.0,91110.0,0.00046552]
[1764939897360,0.04626,91111.0,91110.0,0.00046552]
[1764939897568,0.00675,91111.0,91110.0,0.00046552]
[1764939898017,0.04116525,91111.0,91110.0,0.00046552]
[1764939898410,0.01097646,91111.0,91110.0,0.02200593]
[1764939899838,0.01497646,91111.0,91110.0,0.02300593]
[1764939900192,0.01097646,91111.0,91110.0,0.00046552]
[1764939900607,0.01197646,91111.0,91110.0,0.00246552]
[1764939900813,0.001,91111.0,91110.0,0.039867]
[1764939901018,0.001,91111.0,91110.0,0.01791552]
[1764939901216,0.001,91111.0,91110.0,0.00246552]
[1764939901624,0.001,91111.0,91110.0,0.04153552]
[1764939901974,0.001,91111.0,91110.0,0.03945593]
[1764939902309,0.001,91111.0,91110.0,0.06307593]
[1764939902731,0.001,91111.0,91110.0,0.03945593]
[1764939903731,0.001,91111.0,91110.0,0.06307593]
[1764939904327,0.001,91111.0,91110.0,0.38809988]
[1764939904523,0.001,91111.0,91110.0,1.07147581]
[1764939904730,0.001,91111.0,91110.0,0.34861881]
[1764939904934,0.001,91111.0,91110.0,0.02561881]
[1764939905334,0.001,91111.0,91110.0,0.04106881]
[1764939905536,0.001,91111.0,91110.0,0.06468881]
[1764939905664,0.01209,91124.0,91122.0,0.21948535]
[1764939906580,0.01507,91123.0,91122.0,0.21948535]
[1764939906780,0.02306309,91132.0,91126.0,0.01097381]
[1764939906979,0.01097333,91130.0,91126.0,0.01097381]
[1764939907178,0.21946963,91129.0,91126.0,0.2304495]
[1764939907387,0.25488062,91130.0,91127.0,0.01097369]
[1764939907585,0.03541333,91130.0,91127.0,0.2304466]
[1764939907784,0.03541333,91130.0,91127.0,0.23044637]
[1764939907999,0.01097321,91131.0,91127.0,0.23044637]
[1764939908212,0.01209,91132.0,91129.0,0.2194691]
[1764939908409,0.01209,91132.0,91130.0,0.24100683]
[1764939908651,0.02306309,91132.0,91128.0,0.01097357]
[1764939908813,0.01507,91129.0,91127.0,0.02154041]
[1764939908995,0.01507,91129.0,91127.0,0.24101304]
[1764939909196,0.03951,91128.0,91127.0,0.0325141]
[1764939909576,0.01097249,91137.0,91133.0,0.01097297]
[1764939909873,0.01097225,91139.0,91135.0,0.23042558]
[1764939910060,0.23041811,91139.0,91135.0,0.23042558]
[1764939910212,0.02444,91138.0,91135.0,0.23042558]
[1764939910414,0.2548605,91138.0,91135.0,0.23042558]
[1764939910860,0.02544,91137.0,91135.0,0.23042558]
[1764939911068,0.001,91137.0,91135.0,0.23042558]
[1764939911266,0.001,91137.0,91136.0,0.07258041]
[1764939911932,0.02739291,91149.0,91143.0,0.01097176]
[1764939911933,0.24681586,91149.0,91143.0,0.01097176]
[1764939912143,0.02739291,91149.0,91148.0,0.21942335]
[1764939912482,0.06690291,91149.0,91146.0,0.23039791]
[1764939912682,0.01507,91147.0,91146.0,0.23039791]
[1764939913102,0.03990869,91147.0,91146.0,0.23039791]
[1764939913702,0.03990869,91147.0,91146.0,0.23139791]
[1764939913954,0.03990869,91147.0,91146.0,0.23039791]
[1764939915139,0.03990869,91147.0,91146.0,0.23139791]
[1764939915484,0.04390869,91147.0,91146.0,0.001]
[1764939915639,0.07133691,91147.0,91146.0,0.001]
[1764939918905,0.29076267,91147.0,91146.0,0.001]
[1764939919109,0.26333445,91147.0,91146.0,0.001]
[1764939930090,0.42691931,91147.0,91146.0,0.001]
[1764939930751,0.78366231,91147.0,91146.0,0.001]
[1764939930951,0.79463612,91147.0,91146.0,0.001]
[1764939931385,0.60986466,91147.0,91146.0,0.001]
[1764939931599,0.28686466,91147.0,91146.0,0.001]
[1764939931724,0.26333445,91147.0,91146.0,0.001]
[1764939933455,0.04390869,91147.0,91146.0,0.001]
[1764939933857,0.01946869,91147.0,91146.0,0.22042817]
[1764939934413,0.00439869,91147.0,91146.0,0.22042817]
[1764939934657,0.00439869,91147.0,91146.0,0.001]
[1764939934870,0.22382445,91147.0,91146.0,0.001]
[1764939935704,0.26343445,91147.0,91146.0,0.001]
[1764939941278,0.04400869,91147.0,91146.0,0.001]
[1764939941511,0.26343445,91147.0,91146.0,0.001]
[1764939943972,0.02036869,91147.0,91146.0,0.22042817]
[1764939944171,0.00439869,91147.0,91146.0,0.22042817]
[1764939944935,0.00439869,91147.0,91146.0,0.26148817]
[1764939945129,0.00439869,91147.0,91146.0,0.28302858]
[1764939945389,0.00439869,91147.0,91146.0,0.28464146]
[1764939945592,0.00439869,91147.0,91146.0,0.22204105]
[1764939946146,0.00039869,91147.0,91146.0,0.22104105]
[1764939946350,0.00139869,91147.0,91146.0,0.22404105]
[1764939947130,0.00139869,91147.0,91146.0,0.22504105]
[1764939948036,0.00139869,91147.0,91146.0,0.28473146]
[1764939948436,0.00139869,91147.0,91146.0,0.26206146]
[1764939950279,0.00139869,91147.0,91146.0,0.28473146]
[1764939951202,0.00139869,91147.0,91146.0,0.26206146]
[1764939951407,0.04013869,91147.0,91146.0,0.004]
[1764939952611,0.00139869,91147.0,91146.0,0.24496858]
[1764939953090,0.00139869,91147.0,91146.0,0.22342817]
[1764939953305,0.00139869,91147.0,91146.0,0.26157817]
[1764939953547,0.00139869,91147.0,91146.0,0.28311858]
[1764939955287,0.00139869,91147.0,91146.0,0.26157817]
[1764939955482,0.00139869,91147.0,91146.0,0.28473146]
[1764939959447,0.04193869,91147.0,91146.0,0.22504105]
[1764939959667,0.04193869,91147.0,91146.0,0.004]
[1764939959887,0.04193869,91147.0,91146.0,0.22342817]
[1764939960297,0.01780869,91147.0,91146.0,0.22342817]
[1764939960510,0.26136445,91147.0,91146.0,0.004]
[1764939960973,0.04193869,91147.0,91146.0,0.004]
[1764939961391,0.26136445,91147.0,91146.0,0.004]
[1764939963681,0.34630097,91147.0,91146.0,0.004]
[1764939963891,0.32388744,91147.0,91146.0,0.004]
[1764939964098,0.26136445,91147.0,91146.0,0.004]
[1764939964826,0.01097152,91145.0,91142.0,0.01097189]
[1764939965054,0.27133641,91147.0,91140.0,0.03251254]
[1764939965257,0.26092641,91147.0,91146.0,0.001]
[1764939965462,0.01097152,91145.0,91142.0,0.23040887]
[1764939965682,0.00039869,91147.0,91146.0,0.21942817]
[1764939965892,0.00039869,91147.0,91146.0,0.24196858]
[1764939965893,0.00439869,91147.0,91146.0,0.24196858]
[1764939966542,0.00039869,91147.0,91146.0,0.24096858]
[1764939966773,0.00039869,91147.0,91146.0,0.29909146]
[1764939967889,0.00239869,91147.0,91146.0,0.30009146]
[1764939968303,0.00039869,91147.0,91146.0,0.29909146]
[1764939968540,0.00139869,91147.0,91146.0,0.30209146]
[1764939968983,0.00139869,91147.0,91146.0,0.30309146]
[1764939973408,0.26136445,91147.0,91146.0,0.004]
[1764939973843,0.29430106,91147.0,91146.0,0.004]
[1764939974326,0.21946952,91129.0,91126.0,0.01097381]
[1764939974530,0.23043532,91132.0,91128.0,0.21946917]
[1764939974732,0.23043979,91131.0,91127.0,0.2304467]
[1764939974944,0.21946688,91130.0,91127.0,0.2304467]
[1764939975151,0.02738357,91128.0,91125.0,0.01097393]
[1764939975353,0.01641,91126.0,91125.0,0.01097393]
[1764939975758,0.04054,91126.0,91125.0,0.01097393]
[1764939976011,0.26001632,91126.0,91124.0,0.03251446]
[1764939976177,0.04054,91126.0,91124.0,0.03251446]
[1764939976629,0.01097297,91133.0,91131.0,0.02154041]
[1764939976850,0.26338039,91132.0,91131.0,0.02154041]
[1764939977062,0.23044223,91131.0,91130.0,0.02154041]
[1764939977268,0.02413,91131.0,91129.0,0.23044255]
[1764939977461,0.02413,91131.0,91130.0,0.21946669]
[1764939977707,0.02413,91131.0,91129.0,0.23044255]
[1764939977910,0.02413,91131.0,91130.0,0.21946669]
[1764939978119,0.03494543,91131.0,91130.0,0.01197333]
[1764939978324,0.27081971,91131.0,91130.0,0.001]
[1764939978780,0.29494971,91131.0,91130.0,0.001]
[1764939980200,0.07548543,91131.0,91130.0,0.001]
[1764939980417,0.07548543,91131.0,91130.0,0.22046669]
[1764939981066,0.05135543,91131.0,91130.0,0.22046669]
[1764939981604,0.07548543,91131.0,91130.0,0.001]
[1764939982655,0.07548543,91131.0,91130.0,0.22046669]
[1764939983162,0.05135543,91131.0,91130.0,0.22046669]
[1764939983359,0.002,91131.0,91130.0,0.2811971]
[1764939983566,0.002,91131.0,91130.0,0.28280998]
[1764939984005,0.002,91131.0,91130.0,0.60580998]
[1764939989130,0.002,91131.0,91130.0,0.56661998]
[1764939989316,0.002,91131.0,91130.0,0.54507957]
[1764939990382,0.01197,91132.0,91131.0,0.21946428]
[1764939991839,0.01397,91132.0,91131.0,0.22546428]
[1764939992492,0.01397,91132.0,91131.0,0.22646428]
[1764939993278,0.01397,91132.0,91131.0,0.24800469]
[1764939995179,0.002,91132.0,91131.0,0.24800469]
[1764939995394,0.002,91132.0,91131.0,0.26514428]
[1764939995601,0.002,91132.0,91131.0,0.28829757]
[1764940001120,0.002,91132.0,91131.0,0.24961757]
[1764940002275,0.04234,91132.0,91131.0,0.00861288]
[1764940003079,0.01865,91132.0,91131.0,0.22807716]
[1764940003281,0.002,91132.0,91131.0,0.24961757]
[1764940003777,0.002,91132.0,91131.0,0.22807716]
[1764940004001,0.002,91132.0,91131.0,0.00861288]
[1764940004214,0.26180187,91132.0,91131.0,0.03015329]
[1764940004419,0.01865,91132.0,91131.0,0.03015329]
[1764940004552,0.22146187,91132.0,91131.0,0.03015329]
[1764940005538,0.002,91132.0,91131.0,0.03015329]
[1764940005904,0.01966273,91132.0,91131.0,0.03015329]
[1764940006123,0.01966273,91132.0,91131.0,0.24961757]
[1764940006693,0.01966273,91132.0,91131.0,0.03015329]
[1764940006900,0.01966273,91132.0,91131.0,0.24961757]
[1764940007099,0.01966273,91132.0,91131.0,0.03015329]
[1764940007324,0.2541546,91132.0,91131.0,0.03015329]
[1764940007591,0.2771246,91132.0,91131.0,0.007]
[1764940008742,0.2771246,91132.0,91131.0,0.006]
[1764940009175,0.2771246,91132.0,91131.0,0.007]
[1764940009532,0.2771246,91132.0,91131.0,0.001]
[1764940009533,0.2751246,91132.0,91131.0,0.001]
[1764940010044,0.2761246,91132.0,91131.0,0.005]
[1764940010689,0.21947151,91128.0,91127.0,0.02154041]
[1764940010903,0.01503,91128.0,91127.0,0.02154041]
[1764940011113,0.01966273,91132.0,91129.0,0.23044255]
[1764940011323,0.01966273,91132.0,91131.0,0.21946428]
[1764940011746,0.01966273,91132.0,91131.0,0.28212757]
[1764940011951,0.002,91132.0,91131.0,0.28212757]
[1764940012550,0.02297,91143.0,91142.0,0.2194378]
[1764940012767,0.02297,91143.0,91142.0,0.24097821]
[1764940012986,0.01136997,91147.0,91142.0,0.24097821]
[1764940012987,0.00039869,91147.0,91146.0,0.21942817]
[1764940013200,0.00039869,91147.0,91146.0,0.26742858]
[1764940013416,0.00039869,91147.0,91146.0,0.27188105]
[1764940013629,0.00039869,91147.0,91146.0,0.29342146]
[1764940014187,0.00039869,91147.0,91146.0,0.26904146]
[1764940014413,0.01642869,91147.0,91146.0,0.24658146]
[1764940014609,0.01542869,91147.0,91146.0,0.24258146]
[1764940014854,0.03839869,91147.0,91146.0,0.24458146]
[1764940015373,0.01542869,91147.0,91146.0,0.24458146]
[1764940015754,0.00039869,91147.0,91146.0,0.28410146]
[1764940015911,0.00039869,91147.0,91146.0,0.26256105]
[1764940016117,0.00039869,91147.0,91146.0,0.28410146]
[1764940016313,0.00239869,91147.0,91146.0,0.29210146]
[1764940017309,0.00239869,91147.0,91146.0,0.24836105]
[1764940019641,0.00239869,91147.0,91146.0,0.26990146]
[1764940021592,0.00239869,91147.0,91146.0,0.25258146]
[1764940021845,0.00239869,91147.0,91146.0,0.01]
[1764940021846,0.04336869,91147.0,91146.0,0.01]
[1764940022189,0.05496869,91147.0,91146.0,0.01]
[1764940022603,0.05496869,91147.0,91146.0,0.22942817]
[1764940024180,0.05296869,91147.0,91144.0,0.01097164]
[1764940024351,0.05296869,91147.0,91144.0,0.23040438]
[1764940024561,0.05296869,91147.0,91146.0,0.007]
[1764940024562,0.01399869,91147.0,91146.0,0.007]
[1764940024776,0.23342445,91147.0,91146.0,0.007]
[1764940024926,0.23342445,91147.0,91146.0,0.006]
[1764940025128,0.27439445,91147.0,91146.0,0.006]
[1764940025761,0.01199869,91147.0,91145.0,0.02154041]
[1764940025935,0.01199869,91147.0,91146.0,0.21942817]
[1764940026139,0.01399869,91147.0,91146.0,0.21942817]
[1764940026364,0.02831869,91147.0,91146.0,0.21942817]
[1764940026518,0.05296869,91147.0,91146.0,0.21942817]
[1764940026717,0.05396869,91147.0,91146.0,0.22042817]
[1764940026923,0.04136869,91147.0,91146.0,0.21942817]
[1764940027365,0.04236869,91147.0,91146.0,0.22342817]
[1764940028036,0.01771869,91147.0,91146.0,0.22342817]
[1764940028640,0.01771869,91147.0,91146.0,0.004]
[1764940028910,0.26179445,91147.0,91146.0,0.004]
[1764940030154,0.04236869,91147.0,91146.0,0.004]
[1764940030284,0.04236869,91147.0,91146.0,0.22342817]
[1764940031606,0.00139869,91147.0,91146.0,0.22342817]
[1764940032406,0.00139869,91147.0,91146.0,0.24496858]
[1764940033890,0.01771869,91147.0,91146.0,0.02554041]
[1764940034037,0.26179445,91147.0,91146.0,0.004]
[1764940037245,0.00139869,91147.0,91146.0,0.22342817]
[1764940038231,0.01771869,91147.0,91146.0,0.22342817]
[1764940038436,0.04236869,91147.0,91146.0,0.22342817]
[1764940038641,0.04236869,91147.0,91146.0,0.004]
[1764940038814,0.26179445,91147.0,91146.0,0.004]
[1764940039419,0.04236869,91147.0,91146.0,0.004]
[1764940039587,0.26179445,91147.0,91146.0,0.004]
[1764940041560,0.04236869,91147.0,91146.0,0.004]
[1764940041857,0.28922267,91147.0,91146.0,0.004]
[1764940042000,0.26179445,91147.0,91146.0,0.004]
[1764940042402,0.04236869,91147.0,91146.0,0.004]
[1764940042593,0.06979691,91147.0,91146.0,0.004]
[1764940042789,0.28922267,91147.0,91146.0,0.004]
[1764940042994,0.26179445,91147.0,91146.0,0.004]
[1764940043407,0.04236869,91147.0,91146.0,0.004]
[1764940043605,0.04236869,91147.0,91146.0,0.22342817]
[1764940043867,0.04236869,91147.0,91146.0,0.004]
[1764940044091,0.06979691,91147.0,91146.0,0.02554041]
[1764940044379,0.28922267,91147.0,91146.0,0.004]
[1764940044590,0.26179445,91147.0,91146.0,0.004]
[1764940047147,0.32431744,91147.0,91146.0,0.004]
[1764940047346,0.26179445,91147.0,91146.0,0.004]
[1764940047496,0.27911445,91147.0,91146.0,0.004]
[1764940056124,0.34163744,91147.0,91146.0,0.004]
[1764940056540,0.21948355,91123.0,91122.0,0.00023525]
[1764940056759,0.24765355,91123.0,91122.0,0.00023525]
[1764940057008,0.27139355,91123.0,91122.0,0.00023525]
[1764940057742,0.27139355,91123.0,91122.0,0.00123525]
[1764940058833,0.05391,91123.0,91122.0,0.22372121]
[1764940059028,0.03017,91123.0,91122.0,0.22372121]
[1764940059234,0.05391,91123.0,91122.0,0.22372121]
[1764940060142,0.05391,91123.0,91122.0,0.00423525]
[1764940060732,0.03017,91123.0,91122.0,0.00423525]
[1764940060954,0.0136,91123.0,91122.0,0.2456698]
[1764940061310,0.0136,91123.0,91122.0,0.02577566]
[1764940061514,0.0136,91123.0,91122.0,0.24526162]
[1764940061727,0.0136,91123.0,91122.0,0.02577566]
[1764940062014,0.23308355,91123.0,91122.0,0.02577566]
[1764940062424,0.0136,91123.0,91122.0,0.02577566]
[1764940062997,0.0136,91123.0,91122.0,0.24526162]
[1764940063206,0.0136,91123.0,91122.0,0.22372121]
[1764940063407,0.002,91123.0,91122.0,0.24526162]
[1764940063618,0.002,91123.0,91122.0,0.02577566]
[1764940063818,0.002,91123.0,91122.0,0.24526162]
[1764940064724,0.01857,91123.0,91122.0,0.02577566]
[1764940065020,0.04231,91123.0,91122.0,0.02577566]
[1764940065255,0.04231,91123.0,91122.0,0.24526162]
[1764940066028,0.04231,91123.0,91122.0,0.22372121]
[1764940066524,0.04231,91123.0,91122.0,0.24526162]
[1764940069461,0.26179355,91123.0,91122.0,0.02577566]
[1764940069686,0.26179355,91123.0,91122.0,0.00423525]
[1764940070823,0.28918646,91123.0,91122.0,0.00423525]
[1764940071352,0.28918646,91123.0,91122.0,0.02577566]
[1764940075496,0.04231,91123.0,91122.0,0.02577566]
[1764940075701,0.002,91123.0,91122.0,0.24526162]
[1764940076988,0.002,91123.0,91122.0,0.22372121]
[1764940077224,0.04103,91123.0,91122.0,0.00423525]
[1764940077479,0.04103,91123.0,91122.0,0.22372121]
[1764940077910,0.26051355,91123.0,91122.0,0.00423525]
[1764940080580,0.25851355,91123.0,91122.0,0.00023525]
[1764940081000,0.26151355,91123.0,91122.0,0.00023525]
[1764940092203,0.29446448,91123.0,91122.0,0.00023525]
[1764940094422,0.07498093,91123.0,91122.0,0.00023525]
[1764940094555,0.29446448,91123.0,91122.0,0.00023525]
[1764940106322,0.03595093,91123.0,91122.0,0.00023525]
[1764940106518,0.25543448,91123.0,91122.0,0.00023525]
[1764940106719,0.29503448,91123.0,91122.0,0.00023525]
[1764940107075,0.07555093,91123.0,91122.0,0.00023525]
[1764940107283,0.29503448,91123.0,91122.0,0.00023525]
[1764940110946,0.07555093,91123.0,91122.0,0.00023525]
[1764940111190,0.03595093,91123.0,91122.0,0.01706813]
[1764940111417,0.03595093,91123.0,91122.0,0.2820845]
[1764940111621,0.03577545,91123.0,91122.0,0.2820845]
[1764940111828,0.03577545,91123.0,91122.0,0.2580945]
[1764940112881,0.03295093,91123.0,91122.0,0.2428745]
[1764940113306,0.03495093,91123.0,91122.0,0.2428745]
[1764940113522,0.07455093,91123.0,91122.0,0.2428745]
[1764940115289,0.07455093,91123.0,91122.0,0.02338854]
[1764940115972,0.29403448,91123.0,91122.0,0.02338854]
[1764940116779,0.07455093,91123.0,91122.0,0.02338854]
[1764940117013,0.05046093,91123.0,91122.0,0.2428745]
[1764940117216,0.03495093,91123.0,91122.0,0.2820845]
[1764940117619,0.002,91123.0,91122.0,0.2820845]
[1764940118775,0.002,91123.0,91122.0,0.2830845]
[1764940118979,0.23107224,91136.0,91135.0,0.02154041]
[1764940119228,0.01097321,91131.0,91127.0,0.01097369]
[1764940119540,0.02409,91135.0,91134.0,0.02154041]
[1764940119839,0.25905467,91135.0,91134.0,0.02154041]
[1764940120063,0.0396,91135.0,91134.0,0.02154041]
[1764940120263,0.06369,91135.0,91134.0,0.02154041]
[1764940120465,0.06369,91135.0,91134.0,0.24099747]
[1764940120633,0.28314465,91135.0,91134.0,0.02154041]
[1764940121237,0.06369,91135.0,91134.0,0.02154041]
[1764940121694,0.06369,91135.0,91134.0,0.24099747]
[1764940123226,0.06669,91135.0,91134.0,0.24299747]
[1764940123873,0.28614465,91135.0,91134.0,0.02354041]
[1764940124533,0.06669,91135.0,91134.0,0.02354041]
[1764940124703,0.06669,91135.0,91134.0,0.24299747]
[1764940127272,0.28614465,91135.0,91134.0,0.002]
[1764940131116,0.06669,91135.0,91134.0,0.002]
[1764940131537,0.06669,91135.0,91134.0,0.22145706]
[1764940132236,0.02709,91135.0,91134.0,0.24299747]
[1764940133481,0.02709,91135.0,91134.0,0.24461035]
[1764940133637,0.02709,91135.0,91134.0,0.29220035]
[1764940133834,0.003,91135.0,91134.0,0.29220035]
[1764940135275,0.003,91135.0,91134.0,0.29320035]
[1764940135711,0.003,91135.0,91134.0,0.61620035]
[1764940135931,0.01203,91154.0,91146.0,0.21942817]
[1764940136132,0.02748869,91147.0,91146.0,0.27619858]
[1764940136377,0.02748869,91147.0,91146.0,0.29964858]
[1764940137000,0.00039869,91147.0,91146.0,0.29964858]
[1764940137801,0.00039869,91147.0,91146.0,0.30064858]
[1764940138026,0.00639869,91147.0,91146.0,0.30064858]
[1764940138471,0.00639869,91147.0,91146.0,0.30226146]
[1764940139619,0.00039869,91147.0,91146.0,0.30126146]
[1764940139837,0.00039869,91147.0,91146.0,0.30226146]
[1764940140067,0.00239869,91147.0,91146.0,0.30326146]
[1764940140457,0.00239869,91147.0,91146.0,0.26090146]
[1764940140670,0.00039869,91147.0,91146.0,0.24258146]
[1764940140848,0.00039869,91147.0,91146.0,0.25990146]
[1764940141054,0.04222869,91147.0,91146.0,0.22042817]
[1764940141265,0.04222869,91147.0,91146.0,0.22142817]
[1764940141506,0.04222869,91147.0,91146.0,0.002]
[1764940141878,0.05060866,91147.0,91146.0,0.24296858]
[1764940142075,0.07516866,91147.0,91146.0,0.02354041]
[1764940142300,0.07516866,91147.0,91146.0,0.002]
[1764940142507,0.07516866,91147.0,91146.0,0.02354041]
[1764940142676,0.29359442,91147.0,91146.0,0.02254041]
[1764940142880,0.29359442,91147.0,91144.0,0.02154041]
[1764940142881,0.21943057,91145.0,91144.0,0.02154041]
[1764940143090,0.23570057,91145.0,91144.0,0.02154041]
[1764940143290,0.26026057,91145.0,91144.0,0.02154041]
[1764940143697,0.2194402,91141.0,91138.0,0.01097237]
[1764940143968,0.02759,91139.0,91138.0,0.23041904]
[1764940144134,0.03333866,91147.0,91146.0,0.21942817]
[1764940144338,0.29359446,91147.0,91144.0,0.23240291]
[1764940144550,0.2357008,91145.0,91143.0,0.02154041]
[1764940144790,0.01627,91144.0,91143.0,0.02154041]
[1764940145203,0.04083,91144.0,91143.0,0.2409758]
[1764940145336,0.03333866,91147.0,91146.0,0.24096858]
[1764940146480,0.03933866,91147.0,91146.0,0.24296858]
[1764940147253,0.00639869,91147.0,91146.0,0.24296858]
[1764940151143,0.04722869,91147.0,91146.0,0.02354041]
[1764940151361,0.04722869,91147.0,91146.0,0.24296858]
[1764940154658,0.04722869,91147.0,91146.0,0.002]
[1764940154875,0.26665445,91147.0,91146.0,0.002]
[1764940158438,0.27762682,91147.0,91146.0,0.002]
[1764940160957,0.05820106,91147.0,91146.0,0.002]
[1764940161159,0.05820106,91147.0,91146.0,0.22142817]
[1764940161362,0.03364106,91147.0,91146.0,0.24296858]
[1764940161564,0.01737106,91147.0,91146.0,0.24296858]
[1764940161960,0.03364106,91147.0,91146.0,0.24296858]
[1764940162778,0.03364106,91147.0,91146.0,0.22142817]
[1764940163179,0.01737106,91147.0,91146.0,0.22142817]
[1764940163394,0.27762682,91147.0,91146.0,0.002]
[1764940165427,0.01737106,91147.0,91146.0,0.02354041]
[1764940165627,0.03253106,91147.0,91146.0,0.02354041]
[1764940165754,0.01737106,91147.0,91146.0,0.24296858]
[1764940165960,0.00639869,91147.0,91146.0,0.24296858]
[1764940166356,0.02155869,91147.0,91146.0,0.24296858]
[1764940166578,0.04518869,91147.0,91146.0,0.24296858]
[1764940166798,0.00639869,91147.0,91146.0,0.24296858]
[1764940167480,0.04518869,91147.0,91146.0,0.24296858]
[1764940167681,0.02155869,91147.0,91146.0,0.24296858]
[1764940167953,0.00639869,91147.0,91146.0,0.24296858]
[1764940168482,0.00639869,91147.0,91146.0,0.25825858]
[1764940168688,0.00639869,91147.0,91146.0,0.25987146]
[1764940168872,0.00639869,91147.0,91146.0,0.24458146]
[1764940170435,0.04518869,91147.0,91146.0,0.22304105]
[1764940170628,0.00639869,91147.0,91146.0,0.60630146]
[1764940171705,0.00639869,91147.0,91146.0,0.60430146]
[1764940171706,0.00039869,91147.0,91146.0,0.60430146]
[1764940171890,0.00039869,91147.0,91146.0,0.63269437]
[1764940172269,0.00239869,91147.0,91146.0,0.63269437]